[Event "Early-Titled-Tuesday-Blitz-December-26-2023"]
[Site "Chess.com"]
[Date "2023.12.26"]
[Round "8"]
[White "LeoLV10"]
[Black "matagordo"]
[Result "0-1"]
[WhiteElo "2458"]
[BlackElo "2264"]
[TimeControl "180+1"]
[EndTime "9:29:06 PST"]
[Termination "matagordo won by resignation"]

1. e4 {[%clk 0:03:00.9]} 1... e6 {[%clk 0:02:59.9]} 2. d4 {[%clk 0:03:00.4]}
2... d5 {[%clk 0:02:59.5]} 3. e5 {[%clk 0:03:00.9]} 3... b6 {[%clk 0:02:59.1]}
4. c3 {[%clk 0:03:01.8]} 4... Qd7 {[%clk 0:02:57.8]} 5. f4 {[%clk 0:02:56.2]}
5... Ba6 {[%clk 0:02:56.9]} 6. Bxa6 {[%clk 0:02:51.1]} 6... Nxa6 {[%clk
0:02:56.3]} 7. Nf3 {[%clk 0:02:52]} 7... c5 {[%clk 0:02:56.5]} 8. O-O {[%clk
0:02:50.6]} 8... Ne7 {[%clk 0:02:55.2]} 9. Kh1 {[%clk 0:02:48.6]} 9... h5 {[%clk
0:02:52.6]} 10. Nh4 {[%clk 0:02:44.2]} 10... g6 {[%clk 0:02:48.2]} 11. Nd2
{[%clk 0:02:38]} 11... Bh6 {[%clk 0:02:46.1]} 12. Ndf3 {[%clk 0:02:36]} 12...
Nc7 {[%clk 0:02:42.2]} 13. a4 {[%clk 0:02:35.1]} 13... a6 {[%clk 0:02:38.7]} 14.
Be3 {[%clk 0:02:35.6]} 14... c4 {[%clk 0:02:04.1]} 15. b3 {[%clk 0:02:33]} 15...
b5 {[%clk 0:02:04.5]} 16. axb5 {[%clk 0:02:15.7]} 16... axb5 {[%clk 0:02:05.4]}
17. Qd2 {[%clk 0:02:16.1]} 17... Nf5 {[%clk 0:01:41.8]} 18. Nxf5 {[%clk
0:02:15.2]} 18... exf5 {[%clk 0:01:36.9]} 19. bxc4 {[%clk 0:02:14.6]} 19... bxc4
{[%clk 0:01:34.3]} 20. Rxa8+ {[%clk 0:02:14.6]} 20... Nxa8 {[%clk 0:01:34.1]}
21. e6 {[%clk 0:02:11]} 21... Qxe6 {[%clk 0:01:30]} 22. Qa2 {[%clk 0:01:57.4]}
22... O-O {[%clk 0:01:28.5]} 23. Ne5 {[%clk 0:01:39.1]} 23... Nc7 {[%clk
0:01:21.3]} 24. Bd2 {[%clk 0:01:32.1]} 24... Ne8 {[%clk 0:01:21]} 25. Re1 {[%clk
0:01:31]} 25... Qc8 {[%clk 0:00:56.7]} 26. Qa5 {[%clk 0:01:14.4]} 26... Nf6
{[%clk 0:00:53.9]} 27. Bc1 {[%clk 0:01:11.7]} 27... Qa8 {[%clk 0:00:47.1]} 28.
Qc5 {[%clk 0:01:02.5]} 28... Ne4 {[%clk 0:00:42.6]} 29. Qb4 {[%clk 0:01:02.6]}
29... Qa2 {[%clk 0:00:34.1]} 30. Qe7 {[%clk 0:00:41.6]} 30... Qf2 {[%clk
0:00:31.1]} 31. Nf3 {[%clk 0:00:33]} 31... Nxc3 {[%clk 0:00:23.1]} 32. Qc5
{[%clk 0:00:23.8]} 32... h4 {[%clk 0:00:11.1]} 33. Bd2 {[%clk 0:00:14.5]} 33...
h3 {[%clk 0:00:09.4]} 34. Rg1 {[%clk 0:00:09.1]} 34... hxg2+ {[%clk 0:00:07.4]}
35. Rxg2 {[%clk 0:00:09.9]} 35... Qxf3 {[%clk 0:00:07.8]} 36. Bxc3 {[%clk
0:00:10.1]} 36... Qxc3 {[%clk 0:00:07.6]} 37. Qxd5 {[%clk 0:00:11]} 37... Qe3
{[%clk 0:00:05]} 38. Rxg6+ {[%clk 0:00:10.7]} 38... Kh7 {[%clk 0:00:04.2]} 39.
Rg3 {[%clk 0:00:09.8]} 39... Qe4+ {[%clk 0:00:04.8]} 40. Qxe4 {[%clk 0:00:08.8]}
40... fxe4 {[%clk 0:00:05.7]} 41. Rc3 {[%clk 0:00:08.7]} 41... Rc8 {[%clk
0:00:05.9]} 0-1

[Event "Early-Titled-Tuesday-Blitz-December-26-2023"]
[Site "Chess.com"]
[Date "2023.12.26"]
[Round "8"]
[White "ShadyH9"]
[Black "JafarTheParrot"]
[Result "0-1"]
[WhiteElo "2332"]
[BlackElo "2518"]
[TimeControl "180+1"]
[EndTime "9:29:07 PST"]
[Termination "JafarTheParrot won by resignation"]

1. e4 {[%clk 0:03:00.9]} 1... c5 {[%clk 0:02:57.7]} 2. Nf3 {[%clk 0:02:59.3]}
2... Nc6 {[%clk 0:02:56.9]} 3. Bb5 {[%clk 0:02:58.2]} 3... g6 {[%clk 0:02:52.8]}
4. O-O {[%clk 0:02:58.2]} 4... Bg7 {[%clk 0:02:53.2]} 5. c3 {[%clk 0:02:58.4]}
5... Nf6 {[%clk 0:02:51.7]} 6. Re1 {[%clk 0:02:58.4]} 6... O-O {[%clk
0:02:50.6]} 7. h3 {[%clk 0:02:58.7]} 7... e6 {[%clk 0:02:50.1]} 8. e5 {[%clk
0:02:50.3]} 8... Ne8 {[%clk 0:02:49]} 9. d4 {[%clk 0:02:44.4]} 9... cxd4 {[%clk
0:02:41.9]} 10. cxd4 {[%clk 0:02:45.3]} 10... Nc7 {[%clk 0:02:38]} 11. Nc3
{[%clk 0:02:39.8]} 11... d5 {[%clk 0:02:34.1]} 12. Bxc6 {[%clk 0:02:32.2]} 12...
bxc6 {[%clk 0:02:35]} 13. b3 {[%clk 0:02:32.1]} 13... Re8 {[%clk 0:02:20.2]} 14.
Ba3 {[%clk 0:02:31.5]} 14... a5 {[%clk 0:02:15.1]} 15. Rc1 {[%clk 0:02:28.3]}
15... Nb5 {[%clk 0:02:04.2]} 16. Nxb5 {[%clk 0:02:24.6]} 16... cxb5 {[%clk
0:02:05.1]} 17. Bd6 {[%clk 0:02:24.9]} 17... b4 {[%clk 0:01:59.1]} 18. Rc5
{[%clk 0:02:11]} 18... Qd7 {[%clk 0:01:48.2]} 19. Qd2 {[%clk 0:02:05.6]} 19...
Bb7 {[%clk 0:01:43.9]} 20. h4 {[%clk 0:01:57.1]} 20... Rec8 {[%clk 0:01:39]} 21.
h5 {[%clk 0:01:48]} 21... Rxc5 {[%clk 0:01:38.2]} 22. dxc5 {[%clk 0:01:38.8]}
22... Bc6 {[%clk 0:01:22.9]} 23. Nd4 {[%clk 0:01:37.3]} 23... Qb7 {[%clk
0:01:11.7]} 24. Re3 {[%clk 0:01:32.4]} 24... a4 {[%clk 0:01:03.3]} 25. Rf3
{[%clk 0:01:26.8]} 25... axb3 {[%clk 0:01:01.7]} 26. axb3 {[%clk 0:01:27.7]}
26... Ra1+ {[%clk 0:00:56]} 27. Kh2 {[%clk 0:01:27.6]} 27... Be8 {[%clk
0:00:56.2]} 28. Qf4 {[%clk 0:01:25.1]} 28... Qa6 {[%clk 0:00:44.6]} 29. h6
{[%clk 0:01:19.6]} 29... Bh8 {[%clk 0:00:19.7]} 30. Nxe6 {[%clk 0:01:18.6]}
30... Qf1 {[%clk 0:00:20.4]} 31. Nc7 {[%clk 0:01:07.8]} 31... f5 {[%clk
0:00:17.6]} 32. exf6 {[%clk 0:01:04.2]} 32... Bf7 {[%clk 0:00:17.1]} 33. Qe5
{[%clk 0:00:40]} 33... Qh1+ {[%clk 0:00:16.7]} 34. Kg3 {[%clk 0:00:40]} 34...
Rg1 {[%clk 0:00:17.6]} 35. Nxd5 {[%clk 0:00:19.1]} 35... Qxg2+ {[%clk
0:00:13.3]} 36. Kf4 {[%clk 0:00:19.4]} 36... Qg4+ {[%clk 0:00:13.9]} 37. Ke3
{[%clk 0:00:19.5]} 37... Re1+ {[%clk 0:00:14.8]} 38. Kd2 {[%clk 0:00:09.2]}
38... Rxe5 {[%clk 0:00:15.7]} 39. Bxe5 {[%clk 0:00:02.5]} 39... Qxf3 {[%clk
0:00:15.3]} 0-1

[Event "Early-Titled-Tuesday-Blitz-December-26-2023"]
[Site "Chess.com"]
[Date "2023.12.26"]
[Round "8"]
[White "chessdiamant"]
[Black "wqws"]
[Result "1-0"]
[WhiteElo "2593"]
[BlackElo "2715"]
[TimeControl "180+1"]
[EndTime "9:29:14 PST"]
[Termination "chessdiamant won by resignation"]

1. d4 {[%clk 0:03:00.9]} 1... Nf6 {[%clk 0:02:59.9]} 2. Nf3 {[%clk 0:03:00.4]}
2... g6 {[%clk 0:03:00.6]} 3. b3 {[%clk 0:02:59.2]} 3... Bg7 {[%clk 0:03:01.3]}
4. Bb2 {[%clk 0:03:00]} 4... O-O {[%clk 0:03:01.9]} 5. g3 {[%clk 0:03:00.7]}
5... a5 {[%clk 0:03:02.3]} 6. Bg2 {[%clk 0:02:59]} 6... b6 {[%clk 0:03:03]} 7.
O-O {[%clk 0:02:59.4]} 7... Bb7 {[%clk 0:03:03.5]} 8. c4 {[%clk 0:02:59.4]} 8...
d6 {[%clk 0:03:02.4]} 9. Nc3 {[%clk 0:02:59.5]} 9... Nbd7 {[%clk 0:03:03]} 10.
Qc2 {[%clk 0:02:57.9]} 10... c5 {[%clk 0:03:01.3]} 11. d5 {[%clk 0:02:55.7]}
11... e5 {[%clk 0:02:58.8]} 12. dxe6 {[%clk 0:02:54.6]} 12... fxe6 {[%clk
0:02:58.6]} 13. Rad1 {[%clk 0:02:55.3]} 13... Qe7 {[%clk 0:02:58.4]} 14. Ng5
{[%clk 0:02:38.4]} 14... Bxg2 {[%clk 0:02:55.5]} 15. Kxg2 {[%clk 0:02:39.3]}
15... Rad8 {[%clk 0:02:55.2]} 16. Nb5 {[%clk 0:02:22.5]} 16... Nb8 {[%clk
0:02:41.6]} 17. e4 {[%clk 0:01:42.7]} 17... Nc6 {[%clk 0:02:38.6]} 18. f4 {[%clk
0:01:32.7]} 18... h6 {[%clk 0:02:21.9]} 19. Nf3 {[%clk 0:01:30.4]} 19... Ng4
{[%clk 0:02:21.9]} 20. Rde1 {[%clk 0:01:27.1]} 20... Nb4 {[%clk 0:02:19.7]} 21.
Qb1 {[%clk 0:01:18.1]} 21... Bxb2 {[%clk 0:02:19.4]} 22. Qxb2 {[%clk 0:01:19]}
22... Nd3 {[%clk 0:02:20.1]} 23. Qc2 {[%clk 0:01:11.1]} 23... Nxe1+ {[%clk
0:02:20.5]} 24. Rxe1 {[%clk 0:01:11.9]} 24... g5 {[%clk 0:02:11.9]} 25. h3
{[%clk 0:01:07.2]} 25... Nf6 {[%clk 0:02:07.7]} 26. e5 {[%clk 0:01:03.8]} 26...
dxe5 {[%clk 0:02:07.6]} 27. fxe5 {[%clk 0:01:04.1]} 27... Nh5 {[%clk 0:02:06.9]}
28. Qg6+ {[%clk 0:01:02.1]} 28... Ng7 {[%clk 0:02:06.7]} 29. Nd6 {[%clk
0:00:51.8]} 29... Rxd6 {[%clk 0:01:55.8]} 30. exd6 {[%clk 0:00:50.1]} 30... Qxd6
{[%clk 0:01:56.7]} 31. Qxh6 {[%clk 0:00:41.8]} 31... Qd3 {[%clk 0:01:44.4]} 32.
Rf1 {[%clk 0:00:40.4]} 32... e5 {[%clk 0:01:42.1]} 33. Rf2 {[%clk 0:00:22]}
33... e4 {[%clk 0:01:03.6]} 34. Nxg5 {[%clk 0:00:22.2]} 34... Rxf2+ {[%clk
0:01:03.1]} 35. Kxf2 {[%clk 0:00:23.1]} 35... e3+ {[%clk 0:01:03]} 36. Kg1
{[%clk 0:00:19.3]} 36... e2 {[%clk 0:00:56.8]} 37. Kf2 {[%clk 0:00:16.3]} 37...
Qe3+ {[%clk 0:00:51.7]} 38. Kxe3 {[%clk 0:00:15.8]} 38... e1=Q+ {[%clk
0:00:51.7]} 39. Kf3 {[%clk 0:00:16.3]} 39... Qd1+ {[%clk 0:00:48]} 40. Kf2
{[%clk 0:00:16.2]} 40... Qd2+ {[%clk 0:00:47.4]} 41. Kf3 {[%clk 0:00:16.5]}
41... Qd3+ {[%clk 0:00:47.2]} 42. Kg4 {[%clk 0:00:14.2]} 42... Qe2+ {[%clk
0:00:41.9]} 43. Kf4 {[%clk 0:00:11.3]} 43... Qf2+ {[%clk 0:00:36.5]} 44. Nf3
{[%clk 0:00:09.6]} 44... Qxa2 {[%clk 0:00:31.8]} 45. Qxb6 {[%clk 0:00:09.6]}
45... a4 {[%clk 0:00:26.9]} 46. Qd8+ {[%clk 0:00:09.7]} 46... Kh7 {[%clk
0:00:26.5]} 47. Ng5+ {[%clk 0:00:09.9]} 47... Kg6 {[%clk 0:00:25.6]} 48. Qd6+
{[%clk 0:00:09.9]} 48... Kh5 {[%clk 0:00:25.5]} 49. g4+ {[%clk 0:00:10.1]} 1-0

[Event "Early-Titled-Tuesday-Blitz-December-26-2023"]
[Site "Chess.com"]
[Date "2023.12.26"]
[Round "8"]
[White "PedroGil25"]
[Black "Manukyan_Artak"]
[Result "0-1"]
[WhiteElo "2395"]
[BlackElo "2609"]
[TimeControl "180+1"]
[EndTime "9:29:20 PST"]
[Termination "Manukyan_Artak won by checkmate"]

1. e4 {[%clk 0:02:57.1]} 1... c6 {[%clk 0:03:00]} 2. Nc3 {[%clk 0:02:53.2]} 2...
d5 {[%clk 0:03:00.9]} 3. Nf3 {[%clk 0:02:53.8]} 3... dxe4 {[%clk 0:03:00.7]} 4.
Nxe4 {[%clk 0:02:54.7]} 4... Nf6 {[%clk 0:03:00.1]} 5. Qe2 {[%clk 0:02:54.7]}
5... Nxe4 {[%clk 0:02:59.5]} 6. Qxe4 {[%clk 0:02:55.6]} 6... Qd5 {[%clk
0:02:59.8]} 7. Qh4 {[%clk 0:02:55.4]} 7... Bf5 {[%clk 0:02:54.5]} 8. Bc4 {[%clk
0:02:52.4]} 8... Qe4+ {[%clk 0:02:49.6]} 9. Qxe4 {[%clk 0:02:52.1]} 9... Bxe4
{[%clk 0:02:50.5]} 10. Bxf7+ {[%clk 0:02:51.7]} 10... Kd8 {[%clk 0:02:50.7]} 11.
Bb3 {[%clk 0:02:42.3]} 11... Bxf3 {[%clk 0:02:39]} 12. gxf3 {[%clk 0:02:43.2]}
12... e5 {[%clk 0:02:35.7]} 13. d3 {[%clk 0:02:38.3]} 13... Nd7 {[%clk
0:02:29.7]} 14. f4 {[%clk 0:02:37.4]} 14... Kc7 {[%clk 0:02:16.8]} 15. fxe5
{[%clk 0:02:31.8]} 15... Nxe5 {[%clk 0:02:15.6]} 16. Bf4 {[%clk 0:02:31.3]}
16... Bd6 {[%clk 0:02:10.9]} 17. Bg3 {[%clk 0:02:30.6]} 17... Nf3+ {[%clk
0:02:04.5]} 18. Ke2 {[%clk 0:02:30.9]} 18... Rhf8 {[%clk 0:01:54.6]} 19. Raf1
{[%clk 0:02:13.5]} 19... a5 {[%clk 0:01:32.8]} 20. c3 {[%clk 0:01:50.3]} 20...
a4 {[%clk 0:01:24.5]} 21. Bc2 {[%clk 0:01:50.4]} 21... a3 {[%clk 0:01:25.4]} 22.
b4 {[%clk 0:01:50.2]} 22... Rf6 {[%clk 0:01:08.8]} 23. d4 {[%clk 0:01:46.9]}
23... Re8+ {[%clk 0:01:00.8]} 24. Kd1 {[%clk 0:01:46.3]} 24... h5 {[%clk
0:00:59.7]} 25. h4 {[%clk 0:01:38.4]} 25... Bxg3 {[%clk 0:00:53.5]} 26. fxg3
{[%clk 0:01:39.3]} 26... Re3 {[%clk 0:00:53.4]} 27. Rf2 {[%clk 0:01:14.8]} 27...
Rxc3 {[%clk 0:00:49.4]} 28. Rhf1 {[%clk 0:01:15.4]} 28... Kd6 {[%clk 0:00:39.6]}
29. Be4 {[%clk 0:01:12.4]} 29... Nxd4 {[%clk 0:00:34.4]} 30. Rxf6+ {[%clk
0:01:12.3]} 30... gxf6 {[%clk 0:00:35.3]} 31. Bg6 {[%clk 0:01:11.4]} 31... Rxg3
{[%clk 0:00:34]} 32. Bxh5 {[%clk 0:01:11.8]} 32... Ke5 {[%clk 0:00:28]} 33. Bf7
{[%clk 0:01:07.7]} 33... Rh3 {[%clk 0:00:25.4]} 34. h5 {[%clk 0:01:07.8]} 34...
f5 {[%clk 0:00:25.1]} 35. Re1+ {[%clk 0:00:55.5]} 35... Kf6 {[%clk 0:00:24.7]}
36. Be8 {[%clk 0:00:54.9]} 36... Nb5 {[%clk 0:00:18.6]} 37. Kc2 {[%clk
0:00:47.1]} 37... Nd4+ {[%clk 0:00:16.1]} 38. Kb1 {[%clk 0:00:45.4]} 38... Rh2
{[%clk 0:00:15]} 39. b5 {[%clk 0:00:11.9]} 39... Rb2+ {[%clk 0:00:06.7]} 40. Kc1
{[%clk 0:00:12.4]} 40... Rxa2 {[%clk 0:00:05.3]} 41. h6 {[%clk 0:00:12.8]} 41...
Ra1+ {[%clk 0:00:02.9]} 42. Kd2 {[%clk 0:00:12.5]} 42... Nf3+ {[%clk 0:00:03.1]}
43. Kc3 {[%clk 0:00:12.2]} 43... Rxe1 {[%clk 0:00:03.9]} 44. h7 {[%clk
0:00:12.3]} 44... Rxe8 {[%clk 0:00:03.9]} 45. b6 {[%clk 0:00:11.2]} 45... c5
{[%clk 0:00:04.1]} 46. Kc4 {[%clk 0:00:11.4]} 46... Rh8 {[%clk 0:00:04.9]} 47.
Kxc5 {[%clk 0:00:12.3]} 47... Rxh7 {[%clk 0:00:05.5]} 48. Kd6 {[%clk 0:00:13.2]}
48... a2 {[%clk 0:00:05.8]} 49. Kc5 {[%clk 0:00:14.1]} 49... a1=Q {[%clk
0:00:05.9]} 50. Kd6 {[%clk 0:00:15]} 50... Qe5# {[%clk 0:00:06]} 0-1

[Event "Early-Titled-Tuesday-Blitz-December-26-2023"]
[Site "Chess.com"]
[Date "2023.12.26"]
[Round "8"]
[White "Flawless_Fighter"]
[Black "FoxOnTheRun97"]
[Result "1-0"]
[WhiteElo "2791"]
[BlackElo "2573"]
[TimeControl "180+1"]
[EndTime "9:29:29 PST"]
[Termination "Flawless_Fighter won on time"]

1. e4 {[%clk 0:03:00.9]} 1... c6 {[%clk 0:02:59.8]} 2. d4 {[%clk 0:03:00.9]}
2... d5 {[%clk 0:03:00.7]} 3. exd5 {[%clk 0:03:00.2]} 3... cxd5 {[%clk
0:03:01.6]} 4. Bd3 {[%clk 0:03:00.7]} 4... Nc6 {[%clk 0:03:01.8]} 5. c3 {[%clk
0:03:01.5]} 5... g6 {[%clk 0:03:02.1]} 6. Bf4 {[%clk 0:02:59.3]} 6... Nh6 {[%clk
0:03:02.4]} 7. Nf3 {[%clk 0:02:53.6]} 7... Bf5 {[%clk 0:03:02.3]} 8. Bxh6 {[%clk
0:02:52.9]} 8... Bxh6 {[%clk 0:03:02.7]} 9. Bxf5 {[%clk 0:02:52.7]} 9... gxf5
{[%clk 0:03:03.6]} 10. O-O {[%clk 0:02:51.4]} 10... e6 {[%clk 0:03:01.6]} 11.
Nbd2 {[%clk 0:02:49.7]} 11... O-O {[%clk 0:03:01.5]} 12. Ne1 {[%clk 0:02:48.4]}
12... Kh8 {[%clk 0:02:51.8]} 13. Nd3 {[%clk 0:02:47.7]} 13... Rg8 {[%clk
0:02:49.2]} 14. g3 {[%clk 0:02:45.5]} 14... Qf6 {[%clk 0:02:37.8]} 15. Nf3
{[%clk 0:02:39.7]} 15... f4 {[%clk 0:02:32]} 16. Kh1 {[%clk 0:02:36.7]} 16...
Rg7 {[%clk 0:02:25.5]} 17. Nfe5 {[%clk 0:02:34.7]} 17... Rag8 {[%clk 0:02:21.4]}
18. Qf3 {[%clk 0:02:32.5]} 18... Ne7 {[%clk 0:01:56]} 19. Rg1 {[%clk 0:02:26]}
19... Qf5 {[%clk 0:01:41.1]} 20. Rae1 {[%clk 0:01:59.8]} 20... fxg3 {[%clk
0:01:12.4]} 21. fxg3 {[%clk 0:01:55.7]} 21... Qxf3+ {[%clk 0:01:08]} 22. Nxf3
{[%clk 0:01:56.6]} 22... Rc8 {[%clk 0:01:01]} 23. Rgf1 {[%clk 0:01:54.6]} 23...
Kg8 {[%clk 0:01:00.4]} 24. Nfe5 {[%clk 0:01:53.6]} 24... Nc6 {[%clk 0:00:57.7]}
25. Nxc6 {[%clk 0:01:49]} 25... bxc6 {[%clk 0:00:56.2]} 26. b4 {[%clk
0:01:48.9]} 26... Bg5 {[%clk 0:00:43.2]} 27. Re2 {[%clk 0:01:47.9]} 27... Be7
{[%clk 0:00:43.1]} 28. a4 {[%clk 0:01:45.7]} 28... Bd6 {[%clk 0:00:42.2]} 29. a5
{[%clk 0:01:45.5]} 29... Kf8 {[%clk 0:00:39.9]} 30. Rxe6 {[%clk 0:01:44.6]}
30... Rg6 {[%clk 0:00:36.3]} 31. Re3 {[%clk 0:01:39.2]} 31... Re8 {[%clk
0:00:33.4]} 32. Rxe8+ {[%clk 0:01:35.9]} 32... Kxe8 {[%clk 0:00:34.3]} 33. Kg2
{[%clk 0:01:32.2]} 33... h5 {[%clk 0:00:32.5]} 34. Nf4 {[%clk 0:01:26.8]} 34...
Bxf4 {[%clk 0:00:30.7]} 35. Rxf4 {[%clk 0:01:26.3]} 35... Re6 {[%clk 0:00:30.2]}
36. Kf2 {[%clk 0:01:26.4]} 36... a6 {[%clk 0:00:22.3]} 37. h4 {[%clk 0:01:24.5]}
37... Ke7 {[%clk 0:00:15.9]} 38. Rf5 {[%clk 0:01:24]} 38... Rh6 {[%clk
0:00:16.2]} 39. Kf3 {[%clk 0:01:23.5]} 39... f6 {[%clk 0:00:15.3]} 40. Ke3
{[%clk 0:01:18.9]} 40... Rg6 {[%clk 0:00:14.2]} 41. Rf3 {[%clk 0:01:16.3]} 41...
Ke6 {[%clk 0:00:14]} 42. Kf2 {[%clk 0:01:15]} 42... Rg8 {[%clk 0:00:13.2]} 43.
Re3+ {[%clk 0:01:15]} 43... Kd6 {[%clk 0:00:13.2]} 44. Kf3 {[%clk 0:01:14.5]}
44... Rg7 {[%clk 0:00:13.5]} 45. Kf4 {[%clk 0:01:14.7]} 45... Rg4+ {[%clk
0:00:07]} 46. Kf5 {[%clk 0:01:14.1]} 46... Kd7 {[%clk 0:00:05.7]} 47. Kxf6
{[%clk 0:01:13.3]} 47... Re4 {[%clk 0:00:05.9]} 48. Rf3 {[%clk 0:01:12.3]} 48...
Rg4 {[%clk 0:00:04.4]} 49. Ke5 {[%clk 0:01:10.1]} 49... Re4+ {[%clk 0:00:03.6]}
50. Kf5 {[%clk 0:01:10.1]} 50... Rg4 {[%clk 0:00:04.3]} 51. Re3 {[%clk
0:01:10.3]} 51... Kd6 {[%clk 0:00:03.5]} 52. Re6+ {[%clk 0:01:07.6]} 52... Kd7
{[%clk 0:00:03.8]} 53. Rg6 {[%clk 0:01:07.5]} 53... Re4 {[%clk 0:00:04.1]} 54.
Rg7+ {[%clk 0:01:07.2]} 54... Kd6 {[%clk 0:00:03.9]} 55. Rg6+ {[%clk 0:01:07.3]}
55... Kd7 {[%clk 0:00:04.1]} 56. Rh6 {[%clk 0:01:03.3]} 56... Re3 {[%clk
0:00:04.5]} 57. Kf4 {[%clk 0:01:03.5]} 57... Rxc3 {[%clk 0:00:04.5]} 58. Rxh5
{[%clk 0:01:04.2]} 58... Rc4 {[%clk 0:00:04.9]} 59. Ke5 {[%clk 0:01:03.7]} 59...
Rxb4 {[%clk 0:00:04.8]} 60. Rh7+ {[%clk 0:01:04.3]} 60... Ke8 {[%clk 0:00:05]}
61. g4 {[%clk 0:01:01.5]} 61... Rb5 {[%clk 0:00:04.6]} 62. g5 {[%clk 0:01:01.2]}
62... Kf8 {[%clk 0:00:05]} 63. g6 {[%clk 0:01:01.2]} 63... Kg8 {[%clk
0:00:04.6]} 64. Ra7 {[%clk 0:00:58.5]} 64... Rb1 {[%clk 0:00:03.2]} 65. Rxa6
{[%clk 0:00:57.7]} 65... Re1+ {[%clk 0:00:03.4]} 66. Kd6 {[%clk 0:00:57.9]}
66... Kg7 {[%clk 0:00:02.6]} 67. h5 {[%clk 0:00:57.8]} 67... Rh1 {[%clk
0:00:01.5]} 68. Ra7+ {[%clk 0:00:58.4]} 68... Kg8 {[%clk 0:00:01.5]} 69. Rh7
{[%clk 0:00:59.3]} 1-0

[Event "Early-Titled-Tuesday-Blitz-December-26-2023"]
[Site "Chess.com"]
[Date "2023.12.26"]
[Round "8"]
[White "dodoucb"]
[Black "UK_23"]
[Result "0-1"]
[WhiteElo "2484"]
[BlackElo "2343"]
[TimeControl "180+1"]
[EndTime "9:29:29 PST"]
[Termination "UK_23 won by resignation"]

1. d4 {[%clk 0:03:00.9]} 1... d5 {[%clk 0:02:59]} 2. Nf3 {[%clk 0:03:01.5]} 2...
e6 {[%clk 0:02:59.3]} 3. c4 {[%clk 0:03:01.6]} 3... Nf6 {[%clk 0:02:59.8]} 4.
Nc3 {[%clk 0:03:02.1]} 4... Be7 {[%clk 0:02:59.5]} 5. Bg5 {[%clk 0:03:02.4]}
5... O-O {[%clk 0:02:59.8]} 6. e3 {[%clk 0:03:02.8]} 6... b6 {[%clk 0:02:58.6]}
7. Rc1 {[%clk 0:03:02.8]} 7... Bb7 {[%clk 0:02:58.2]} 8. Bd3 {[%clk 0:03:00.3]}
8... c5 {[%clk 0:02:56.8]} 9. O-O {[%clk 0:02:59.3]} 9... cxd4 {[%clk
0:02:56.3]} 10. Nxd4 {[%clk 0:02:55.5]} 10... dxc4 {[%clk 0:02:45.1]} 11. Bxc4
{[%clk 0:02:54.6]} 11... a6 {[%clk 0:02:44.5]} 12. Qe2 {[%clk 0:02:50.4]} 12...
b5 {[%clk 0:02:44.3]} 13. Bd3 {[%clk 0:02:47.6]} 13... Nbd7 {[%clk 0:02:42.3]}
14. Rfd1 {[%clk 0:02:46.8]} 14... Qb6 {[%clk 0:02:41]} 15. a4 {[%clk 0:02:40.2]}
15... b4 {[%clk 0:02:37]} 16. Nb1 {[%clk 0:02:40]} 16... Ne5 {[%clk 0:02:36.2]}
17. Nd2 {[%clk 0:02:30.6]} 17... Nxd3 {[%clk 0:02:35.4]} 18. Qxd3 {[%clk
0:02:31.5]} 18... Rfd8 {[%clk 0:02:35.2]} 19. Nc4 {[%clk 0:02:31.1]} 19... Qa7
{[%clk 0:02:25.8]} 20. Ne5 {[%clk 0:02:23.4]} 20... Rac8 {[%clk 0:02:18.9]} 21.
Qe2 {[%clk 0:01:44.4]} 21... Qb6 {[%clk 0:02:10.6]} 22. h3 {[%clk 0:01:35.5]}
22... h6 {[%clk 0:02:09.1]} 23. Bh4 {[%clk 0:01:35.2]} 23... Bd5 {[%clk
0:02:05.8]} 24. Bxf6 {[%clk 0:01:18.5]} 24... Bxf6 {[%clk 0:02:05.1]} 25. Qh5
{[%clk 0:01:19.1]} 25... Bxe5 {[%clk 0:02:00]} 26. Qxe5 {[%clk 0:01:18.6]} 26...
Qb7 {[%clk 0:01:54.3]} 27. f3 {[%clk 0:01:06.3]} 27... Rxc1 {[%clk 0:01:45]} 28.
Rxc1 {[%clk 0:01:05.6]} 28... Rc8 {[%clk 0:01:45.9]} 29. Rxc8+ {[%clk
0:00:59.6]} 29... Qxc8 {[%clk 0:01:46.8]} 30. e4 {[%clk 0:00:59.6]} 30... Bb7
{[%clk 0:01:42.3]} 31. Kh2 {[%clk 0:00:55.4]} 31... Kh7 {[%clk 0:01:33.7]} 32.
Qd6 {[%clk 0:00:54.8]} 32... Qc1 {[%clk 0:01:30.5]} 33. Qxb4 {[%clk 0:00:44.1]}
33... Qf4+ {[%clk 0:01:08.8]} 34. Kg1 {[%clk 0:00:43.8]} 34... Qe3+ {[%clk
0:01:07.7]} 35. Kf1 {[%clk 0:00:40.6]} 35... e5 {[%clk 0:00:56]} 36. Ne2 {[%clk
0:00:35.4]} 36... Bc6 {[%clk 0:00:54.5]} 37. Qc3 {[%clk 0:00:29.7]} 37... Qb6
{[%clk 0:00:41.6]} 38. b3 {[%clk 0:00:30.1]} 38... f6 {[%clk 0:00:41.2]} 39. Qc4
{[%clk 0:00:25.7]} 39... a5 {[%clk 0:00:39.5]} 40. Nc3 {[%clk 0:00:23.3]} 40...
Bb7 {[%clk 0:00:39.5]} 41. Nb5 {[%clk 0:00:22.9]} 41... Ba6 {[%clk 0:00:37.1]}
42. Qd3 {[%clk 0:00:22.5]} 42... Qc5 {[%clk 0:00:35.4]} 43. Ke2 {[%clk
0:00:22.3]} 43... Qc1 {[%clk 0:00:35.3]} 44. Qe3 {[%clk 0:00:20.6]} 44... Qc2+
{[%clk 0:00:33.6]} 45. Kf1 {[%clk 0:00:19]} 45... Qd1+ {[%clk 0:00:33.6]} 46.
Kf2 {[%clk 0:00:19.3]} 46... Kg6 {[%clk 0:00:31.8]} 47. Kg3 {[%clk 0:00:19.7]}
47... h5 {[%clk 0:00:31]} 48. Nc7 {[%clk 0:00:19.9]} 48... Bc8 {[%clk
0:00:30.4]} 49. Nd5 {[%clk 0:00:19.9]} 49... Be6 {[%clk 0:00:30.6]} 50. Qc5
{[%clk 0:00:19.5]} 50... Qxb3 {[%clk 0:00:28.9]} 51. Ne7+ {[%clk 0:00:19.2]}
51... Kh7 {[%clk 0:00:26.9]} 52. Nc6 {[%clk 0:00:20.1]} 52... Qxa4 {[%clk
0:00:25.3]} 53. Nd8 {[%clk 0:00:19.8]} 53... Bg8 {[%clk 0:00:22.7]} 54. Qf8
{[%clk 0:00:20.2]} 54... Qc4 {[%clk 0:00:21.1]} 55. Nb7 {[%clk 0:00:19.1]} 55...
a4 {[%clk 0:00:21.4]} 56. Nd6 {[%clk 0:00:18.5]} 56... Qe6 {[%clk 0:00:21.7]}
57. Ne8 {[%clk 0:00:19.4]} 57... Qf7 {[%clk 0:00:20.9]} 0-1